bitfinex-derivatives/quotes_BTCF0:USTF0_20250827
["timestamp","ask_amount","ask_price","bid_price","bid_amount"]
[1756309661842,0.85530671,111980.0,111970.0,0.92346484]
[1756309662044,0.67319449,111980.0,111970.0,0.07150484]
[1756309662248,0.67319449,111980.0,111970.0,0.85188]
[1756309662449,0.98319449,111980.0,111970.0,0.85188]
[1756309662656,1.07248169,111980.0,111970.0,0.85188]
[1756309662953,0.24846218,111980.0,111970.0,0.92187045]
[1756309663153,0.76248169,111980.0,111970.0,0.92187045]
[1756309663558,1.09248169,111980.0,111970.0,0.92187045]
[1756309664459,0.24846218,111980.0,111970.0,0.92187045]
[1756309664647,0.76248169,111980.0,111970.0,0.92187045]
[1756309665654,0.24846218,111980.0,111970.0,0.92187045]
[1756309665959,0.24846218,111980.0,111970.0,1.01116555]
[1756309666353,0.24846218,111980.0,111970.0,1.02116555]
[1756309667358,0.24846218,111980.0,111970.0,1.38196555]
[1756309667657,0.0892872,111980.0,111970.0,2.32681008]
[1756309668157,0.0892872,111980.0,111970.0,2.06279057]
[1756309668353,0.15276032,111990.0,111970.0,2.57681008]
[1756309668551,0.0892872,111980.0,111970.0,2.23598506]
[1756309668953,0.0892872,111980.0,111970.0,2.32681008]
[1756309669154,0.15275872,111990.0,111980.0,0.0892872]
[1756309669354,0.15275872,111990.0,111980.0,0.87091222]
[1756309669553,0.66677823,111990.0,111980.0,0.78162502]
[1756309669761,0.66677823,111990.0,111980.0,0.44082502]
[1756309669962,0.66677823,111990.0,111980.0,0.09082502]
[1756309670261,0.66677823,111990.0,111980.0,1.25238502]
[1756309670558,0.66677823,111990.0,111980.0,0.40082502]
[1756309670754,1.36757823,111990.0,111980.0,0.40082502]
[1756309670956,1.11355872,111990.0,111980.0,1.16148]
[1756309671259,1.26677823,111990.0,111980.0,1.16148]
[1756309671462,0.15275872,111990.0,111980.0,1.25230502]
[1756309671661,0.15275872,111990.0,111980.0,1.34159222]
[1756309671862,0.15275872,111990.0,111980.0,1.70239222]
[1756309672664,0.15275872,111990.0,111980.0,1.61310502]
[1756309672963,0.15275872,111990.0,111980.0,1.25230502]
[1756309673168,0.15275872,111990.0,111980.0,1.6115672]
[1756309673559,0.15275872,111990.0,111980.0,1.52228]
[1756309673864,0.13446832,111990.0,111980.0,1.6115672]
[1756309674066,0.13446832,111990.0,111980.0,1.6314279]
[1756309674668,0.5301742,112000.0,111990.0,0.0892792]
[1756309674874,0.0892742,112000.0,111990.0,0.8100792]
[1756309675175,0.0892689,112010.0,111990.0,1.66491633]
[1756309675364,0.0892689,112010.0,112000.0,1.39221622]
[1756309675565,0.0892689,112010.0,112000.0,0.78162502]
[1756309676166,0.12770557,112010.0,112000.0,1.63290502]
[1756309676466,0.64172508,112010.0,112000.0,0.78162502]
[1756309676768,0.64172508,112010.0,112000.0,1.63290502]
[1756309676769,0.12770557,112010.0,112000.0,1.63290502]
[1756309676965,0.64172508,112010.0,112000.0,1.63290502]
[1756309677471,0.64172508,112010.0,112000.0,1.27206502]
[1756309678177,0.64372508,112010.0,112000.0,1.27206502]
[1756309678568,0.12970557,112010.0,112000.0,0.42082502]
[1756309678763,1.59452508,112010.0,112000.0,0.33]
[1756309679477,0.0892727,112000.0,111990.0,0.85116]
[1756309679672,1.33409221,112000.0,111990.0,0.03]
[1756309679876,1.33409221,112000.0,111990.0,0.12082502]
[1756309680171,1.00336491,112000.0,111990.0,0.03]
[1756309680471,0.0892792,111990.0,111980.0,0.0198607]
[1756309680680,1.80441871,111990.0,111980.0,0.0898607]
[1756309680871,2.05441871,111990.0,111980.0,0.0898607]
[1756309681176,1.5403992,111990.0,111980.0,0.0898607]
[1756309681373,2.05441871,111990.0,111980.0,0.0898607]
[1756309681574,1.86451023,111990.0,111980.0,0.0898607]
[1756309681773,1.95378943,111990.0,111980.0,0.0898607]
[1756309682076,1.97205544,111990.0,111980.0,0.0898607]
[1756309682277,1.45803593,111990.0,111980.0,0.0898607]
[1756309682469,2.33285544,111990.0,111980.0,0.07]
[1756309682671,1.81983593,111990.0,111980.0,0.07]
[1756309682976,2.33385544,111990.0,111980.0,0.07]
[1756309683166,2.3600445,111990.0,111980.0,0.07]
[1756309684175,2.3600445,111990.0,111980.0,0.0419937]
[1756309684364,2.3600445,111990.0,111950.0,0.38040331]
[1756309684365,0.0893031,111960.0,111950.0,0.38040331]
[1756309684673,0.92332261,111960.0,111950.0,0.45042833]
[1756309685776,0.4093031,111960.0,111950.0,0.45242833]
[1756309685975,0.92332261,111960.0,111950.0,0.45242833]
[1756309687478,0.92332261,111960.0,111950.0,0.45042833]
[1756309687680,0.92332261,111960.0,111950.0,0.81122833]
[1756309687981,0.92332261,111960.0,111950.0,0.53122833]
[1756309688478,0.92332261,111960.0,111950.0,0.53222833]
[1756309689277,0.92332261,111960.0,111950.0,0.51262502]
[1756309689978,0.93332261,111960.0,111950.0,0.51262502]
[1756309690278,0.0893031,111960.0,111950.0,0.51262502]
[1756309690679,0.60332261,111960.0,111950.0,0.51262502]
[1756309690882,0.95332261,111960.0,111950.0,0.51262502]
[1756309691074,0.4393031,111960.0,111950.0,0.51262502]
[1756309691278,0.95332261,111960.0,111950.0,0.51262502]
[1756309692582,0.0893031,111960.0,111950.0,0.51262502]
[1756309692782,0.60332261,111960.0,111950.0,0.51262502]
[1756309694978,0.60332261,111960.0,111950.0,0.45262502]
[1756309695284,0.52819468,111960.0,111950.0,0.45262502]
[1756309696687,0.67659468,111960.0,111950.0,0.45262502]
[1756309696983,0.52819468,111960.0,111950.0,0.45262502]
[1756309697182,0.4193031,111960.0,111950.0,0.45262502]
[1756309697378,0.85819468,111960.0,111950.0,0.45262502]
[1756309697580,0.84819468,111960.0,111950.0,0.09182502]
[1756309697884,1.28708626,111960.0,111950.0,0.09182502]
[1756309698086,0.4093031,111960.0,111950.0,0.09182502]
[1756309698285,1.28708626,111960.0,111950.0,0.09182502]
[1756309698882,0.87819468,111960.0,111950.0,0.09182502]
[1756309699076,0.9002031,111960.0,111950.0,0.09182502]
[1756309699287,2.269082,111960.0,111950.0,0.45262502]
[1756309699486,2.269082,111960.0,111950.0,0.09182502]
[1756309700386,2.269082,111960.0,111950.0,0.45262502]
[1756309700589,1.3845231,111960.0,111950.0,0.45262502]
[1756309700984,0.5302031,111960.0,111950.0,0.45262502]
[1756309701387,0.5302031,111960.0,111950.0,0.70262502]
[1756309701584,0.5302031,111960.0,111950.0,0.70362502]
[1756309701787,1.404562,111960.0,111950.0,0.70362502]
[1756309702992,1.404562,111960.0,111950.0,0.70162502]
[1756309703193,1.404562,111960.0,111950.0,0.70262502]
[1756309703392,0.8902031,111960.0,111950.0,0.70262502]
[1756309703585,1.404562,111960.0,111950.0,0.70262502]
[1756309703786,1.404562,111960.0,111950.0,0.09082502]
[1756309703986,1.404562,111960.0,111950.0,0.09182502]
[1756309704284,0.4409,111960.0,111950.0,0.70262502]
[1756309704482,0.4409,111960.0,111950.0,1.32502715]
[1756309704679,0.10712727,111970.0,111960.0,0.0893031]
[1756309704886,0.10712727,111970.0,111960.0,1.820782]
[1756309705091,0.01782897,111970.0,111960.0,2.070782]
[1756309705290,0.0892918,111980.0,111970.0,0.0892951]
[1756309705490,0.0892918,111980.0,111970.0,0.4500951]
[1756309705880,0.0892918,111980.0,111970.0,0.3608]
[1756309706086,0.6036507,111980.0,111970.0,1.21724]
[1756309706287,0.9836507,111980.0,111970.0,1.21724]
[1756309707184,0.9836507,111980.0,111970.0,1.21824]
[1756309707385,0.6036507,111980.0,111970.0,1.21824]
[1756309707588,0.9636507,111980.0,111970.0,1.21824]
[1756309708391,0.6036507,111980.0,111970.0,1.21824]
[1756309708587,0.9136507,111980.0,111970.0,0.3618]
[1756309709091,0.0892918,111980.0,111970.0,0.3618]
[1756309709285,0.9436507,111980.0,111970.0,0.3618]
[1756309709493,0.6036507,111980.0,111970.0,0.3618]
[1756309709686,1.1636507,111980.0,111970.0,0.3618]
[1756309710094,2.0220507,111980.0,111970.0,0.3618]
[1756309710287,2.0220507,111980.0,111970.0,0.001]
[1756309710487,1.5076918,111980.0,111970.0,0.001]
[1756309710690,2.0220507,111980.0,111970.0,0.001]
[1756309711991,0.8536507,111980.0,111970.0,0.001]
[1756309712196,0.8536507,111980.0,111970.0,0.3618]
[1756309712897,0.9336507,111980.0,111970.0,0.3618]
[1756309713398,0.0892918,111980.0,111970.0,0.3618]
[1756309713700,0.0892918,111980.0,111970.0,0.3608]
[1756309716294,0.6036507,111980.0,111970.0,0.3608]
[1756309716692,0.0892918,111980.0,111970.0,0.3608]
[1756309716996,0.0892918,111980.0,111970.0,0.7000951]
[1756309717397,0.0892918,111980.0,111970.0,1.5568951]
[1756309718197,0.10754521,111990.0,111980.0,0.0892872]
[1756309718499,0.10754521,111990.0,111980.0,0.4500872]
[1756309718898,0.10754521,111990.0,111980.0,0.3608]
[1756309719095,0.10754521,111990.0,111980.0,1.3071672]
[1756309719296,1.00190411,111990.0,111980.0,0.3608]
[1756309719495,0.0892872,111980.0,111970.0,0.3608]
[1756309719697,0.9636461,111980.0,111970.0,0.3608]
[1756309720097,0.0892951,111970.0,111960.0,1.23836083]
[1756309720299,0.963654,111970.0,111960.0,1.24836083]
[1756309720499,0.603654,111970.0,111960.0,1.24836083]
[1756309721093,0.4492951,111970.0,111960.0,1.24836083]
[1756309721293,0.963654,111970.0,111960.0,1.24836083]
[1756309721595,0.0892951,111970.0,111960.0,1.33766393]
[1756309721801,0.0892951,111970.0,111960.0,2.10202283]
[1756309722500,0.0892927,111980.0,111970.0,0.0892951]
[1756309722700,0.0892927,111980.0,111970.0,0.964454]
[1756309723288,0.0892927,111980.0,111970.0,0.4500951]
[1756309723699,0.0892927,111980.0,111970.0,0.7000951]
[1756309724697,0.0892927,111980.0,111970.0,1.46956]
[1756309725697,0.6036516,111980.0,111970.0,1.21908]
[1756309725998,0.9736516,111980.0,111970.0,0.3608]
[1756309726197,0.9736516,111980.0,111960.0,0.38404083]
[1756309726198,0.0892951,111970.0,111960.0,1.24216083]
[1756309726398,0.603654,111970.0,111960.0,1.25216083]
[1756309726703,0.603654,111970.0,111960.0,1.24900083]
[1756309727206,0.963654,111970.0,111960.0,0.39104083]
[1756309727405,0.4492951,111970.0,111960.0,1.24876083]
[1756309727604,0.963654,111970.0,111960.0,1.24876083]
[1756309727803,0.0892951,111970.0,111960.0,1.24876083]
[1756309728694,0.0892951,111970.0,111960.0,1.24976083]
[1756309729502,0.4192951,111970.0,111960.0,1.24976083]
[1756309729806,0.0892951,111970.0,111960.0,1.24976083]
[1756309730002,0.0892951,111970.0,111960.0,1.33906393]
[1756309730407,0.0892951,111970.0,111960.0,1.33818393]
[1756309731004,0.0892951,111970.0,111960.0,1.24888083]
[1756309731200,0.0892951,111970.0,111960.0,1.24848083]
[1756309731406,0.4692951,111970.0,111960.0,1.24848083]
[1756309731613,0.983654,111970.0,111960.0,1.24848083]
[1756309732312,0.0892951,111970.0,111960.0,1.24848083]
[1756309732614,0.0892951,111970.0,111960.0,1.24748083]
[1756309733105,0.0892951,111970.0,111960.0,1.33678393]
[1756309733407,0.0892913,111980.0,111970.0,0.0892922]
[1756309733612,0.0892913,111980.0,111970.0,0.9644511]
[1756309733799,0.0892913,111980.0,111970.0,1.2144511]
[1756309734811,0.0892913,111980.0,111970.0,0.7000922]
[1756309736501,1.34339901,112010.0,111970.0,1.2144511]
[1756309736502,0.39817311,112010.0,111970.0,1.2144511]
[1756309736706,0.0892502,112030.0,112010.0,0.0892582]
[1756309736905,0.0892502,112030.0,112020.0,2.0916789]
[1756309737104,0.12152449,112030.0,112020.0,0.7316]
[1756309737310,0.12152449,112030.0,112020.0,1.58728]
[1756309738014,0.12152449,112030.0,112020.0,1.6765353]
[1756309738212,0.03227429,112030.0,112020.0,1.74708009]
[1756309738412,0.603595,112050.0,112020.0,2.26143899]
[1756309738606,0.973595,112050.0,112040.0,0.3608]
[1756309738810,0.0892394,112040.0,112030.0,0.3608]
[1756309739213,0.63548269,112040.0,112030.0,0.3608]
[1756309739410,0.0902473,112030.0,112020.0,0.43134479]
[1756309739613,0.6046062,112030.0,112020.0,0.44134479]
[1756309739809,0.0902473,112030.0,112020.0,0.53060009]
[1756309740011,0.0892473,112030.0,112020.0,0.44134479]
[1756309740210,0.6036062,112030.0,112020.0,0.44134479]
[1756309740716,0.9836062,112030.0,112020.0,0.44134479]
[1756309741110,0.9846062,112030.0,112020.0,0.44134479]
[1756309741617,0.6046062,112030.0,112020.0,0.44134479]
[1756309742314,0.0902473,112030.0,112020.0,0.44134479]
[1756309742510,0.6046062,112030.0,112020.0,0.44134479]
[1756309742816,0.6076062,112030.0,112020.0,0.44134479]
[1756309743317,0.0932473,112030.0,112020.0,0.44134479]
[1756309743505,0.6076062,112030.0,112020.0,0.44134479]
[1756309743918,0.9476062,112030.0,112020.0,0.44134479]
[1756309745320,0.6076062,112030.0,112020.0,0.44134479]
[1756309745518,0.6066062,112030.0,112020.0,0.44134479]
[1756309745818,0.0922473,112030.0,112020.0,0.53060009]
[1756309746214,0.0892473,112030.0,112020.0,0.53060009]
[1756309746416,0.0912473,112030.0,112020.0,0.53060009]
[1756309746818,0.0912473,112030.0,112020.0,0.44134479]
[1756309747317,0.0912473,112030.0,112020.0,0.53060009]
[1756309747713,0.0912473,112030.0,112020.0,0.44134479]
[1756309748110,0.6056062,112030.0,112020.0,1.29562479]
[1756309748921,0.9256062,112030.0,112020.0,0.44134479]
[1756309749323,1.1756062,112030.0,112020.0,0.44134479]
[1756309750125,2.0295262,112030.0,112020.0,0.01]
[1756309750426,1.1756062,112030.0,112020.0,0.01]
[1756309750621,2.0291662,112030.0,112020.0,0.01]
[1756309752123,2.0284462,112030.0,112020.0,0.01]
[1756309752828,2.0284462,112030.0,112020.0,0.3708]
[1756309753518,1.1756062,112030.0,112020.0,0.3708]
[1756309753822,0.9256062,112030.0,112020.0,0.3708]
[1756309754219,0.9256062,112030.0,112020.0,0.44302978]
[1756309754418,0.9256062,112030.0,112020.0,0.08222978]
[1756309755121,0.4112473,112030.0,112020.0,0.08222978]
[1756309755522,0.9256062,112030.0,112020.0,0.08222978]
[1756309758224,1.5364062,112030.0,112020.0,0.01]
[1756309758723,0.0892633,112010.0,112000.0,0.09307775]
[1756309759020,1.84665713,112010.0,112000.0,0.09307775]
[1756309759422,1.84665713,112010.0,112000.0,0.45387775]
[1756309759822,0.0892792,111990.0,111980.0,1.2134]
[1756309760027,0.9226381,111990.0,111980.0,1.5434]
[1756309761227,0.9216381,111990.0,111980.0,1.5434]
[1756309761522,0.6016381,111990.0,111980.0,1.5434]
[1756309762127,0.9816381,111990.0,111980.0,1.5434]
[1756309762422,0.9816381,111990.0,111980.0,1.1826]
[1756309762619,0.9816381,111990.0,111980.0,0.40080567]
[1756309762819,1.2326381,111990.0,111980.0,0.33]
[1756309763022,0.0892951,111970.0,111960.0,0.3608]
[1756309763222,0.0892951,111970.0,111960.0,0.7008]
[1756309763719,0.0892951,111970.0,111960.0,0.7901031]
[1756309764022,0.0892951,111970.0,111960.0,1.554462]
[1756309764530,0.0892951,111970.0,111960.0,1.556462]
[1756309764827,0.12122025,111980.0,111970.0,0.0892951]
[1756309765028,0.12122025,111980.0,111970.0,1.4166951]
[1756309765223,0.12122025,111980.0,111970.0,1.6566951]
[1756309765424,0.0892843,111990.0,111970.0,2.421054]
[1756309765625,0.0892843,111990.0,111980.0,0.9644461]
[1756309765831,0.0892843,111990.0,111980.0,1.0352732]
[1756309766024,0.0892843,111990.0,111980.0,0.945986]
[1756309766323,0.0892843,111990.0,111980.0,0.4316271]
[1756309766524,0.4192843,111990.0,111980.0,0.4316271]
[1756309766724,0.23880076,111990.0,111980.0,0.4316271]
[1756309767031,0.32808306,111990.0,111980.0,0.4316271]
[1756309767229,0.84344196,111990.0,111980.0,0.4316271]
[1756309767431,0.32908306,111990.0,111980.0,0.4316271]
[1756309768335,0.3601917,111990.0,111980.0,0.4316271]
[1756309768528,0.12139094,111990.0,111980.0,0.4316271]
[1756309771623,0.12139094,111990.0,111980.0,0.5209143]
[1756309772731,0.12039094,111990.0,111980.0,0.5209143]
[1756309773233,0.12039094,111990.0,111980.0,0.4316271]
[1756309773827,0.12039094,111990.0,111980.0,0.4326271]
[1756309774028,0.12039094,111990.0,111980.0,0.6826271]
[1756309775426,0.63474984,111990.0,111980.0,0.4326271]
[1756309775631,1.00474984,111990.0,111980.0,0.4326271]
[1756309776127,1.00474984,111990.0,111980.0,0.0718271]
[1756309776329,1.25474984,111990.0,111980.0,0.001]
[1756309776523,1.61554984,111990.0,111980.0,0.001]
[1756309776725,1.61554984,111990.0,111970.0,0.3608]
[1756309776726,0.0892872,111980.0,111970.0,0.3608]
[1756309776930,0.9736461,111980.0,111970.0,0.3608]
[1756309777122,0.0892951,111970.0,111960.0,0.3608]
[1756309777323,0.983654,111970.0,111960.0,1.52532]
[1756309778430,1.00172343,111970.0,111960.0,0.6708]
[1756309778630,0.95172343,111970.0,111960.0,0.6708]
[1756309778838,0.95072343,111970.0,111960.0,0.6708]
[1756309779424,0.62072343,111970.0,111960.0,0.6708]
[1756309779629,0.10636453,111970.0,111960.0,0.6708]
[1756309782633,0.10736453,111970.0,111960.0,0.6708]
[1756309782840,0.10736453,111970.0,111960.0,0.53248266]
[1756309785136,0.01906943,111970.0,111960.0,0.53248266]
[1756309785337,0.001,111970.0,111960.0,2.47002466]
[1756309785541,0.001,111970.0,111960.0,2.14002466]
[1756309785742,0.0892922,111980.0,111970.0,0.10919224]
[1756309785943,0.0892922,111980.0,111970.0,0.98435114]
[1756309786947,0.0892922,111980.0,111970.0,0.98635114]
[1756309787148,0.0892922,111980.0,111970.0,0.47199224]
[1756309788047,0.0892922,111980.0,111970.0,0.47399224]
[1756309789051,0.0892922,111980.0,111970.0,0.98635114]
[1756309789247,0.12039064,111990.0,111980.0,0.0892872]
[1756309789552,0.089282,111990.0,111980.0,1.21312]
[1756309789745,0.089282,111990.0,111980.0,0.3608]
[1756309789945,0.089282,111990.0,111980.0,1.21464]
[1756309790653,0.48704739,111990.0,111980.0,1.21464]
[1756309791341,0.11704739,111990.0,111980.0,1.3039272]
[1756309791848,0.11704739,111990.0,111980.0,0.9654461]
[1756309792042,0.11704739,111990.0,111980.0,1.3045672]
[1756309792751,0.11704739,111990.0,111980.0,1.3035672]
[1756309792948,0.11704739,111990.0,111980.0,0.3628]
[1756309793250,0.11704739,111990.0,111980.0,1.21624]
[1756309793646,0.11704739,111990.0,111980.0,1.21824]
[1756309794045,0.49704739,111990.0,111980.0,0.3648]
[1756309794251,0.63140629,111990.0,111980.0,1.21864]
[1756309794452,0.97140629,111990.0,111980.0,1.21864]
[1756309794750,0.97140629,111990.0,111980.0,1.21664]
[1756309794949,0.97122554,111990.0,111980.0,1.21664]
[1756309795248,0.63222554,111990.0,111980.0,0.3608]
[1756309795449,0.97222554,111990.0,111980.0,0.3608]
[1756309796345,1.22422554,111990.0,111980.0,0.3608]
[1756309798150,1.22522554,111990.0,111980.0,0.3608]
[1756309798353,0.71086664,111990.0,111980.0,0.3608]
[1756309798553,0.12086664,111990.0,111980.0,0.4500872]
[1756309798750,0.49086664,111990.0,111980.0,0.3608]
[1756309799147,0.48786664,111990.0,111980.0,0.3608]
[1756309799452,1.00122554,111990.0,111980.0,0.3608]
[1756309799841,0.63122554,111990.0,111980.0,0.4500872]
[1756309800152,0.11686664,111990.0,111980.0,0.4500872]
[1756309800353,0.98122554,111990.0,111980.0,0.3608]
[1756309800650,0.96122554,111990.0,111980.0,0.3608]
[1756309800854,0.0892872,111980.0,111970.0,1.23305714]
[1756309801048,0.0892872,111980.0,111970.0,1.59385714]
[1756309801450,0.0892872,111980.0,111970.0,1.68315234]
[1756309801745,0.0892872,111980.0,111970.0,1.59385714]
[1756309801951,0.6036461,111980.0,111970.0,1.59385714]
[1756309802355,0.9636461,111980.0,111970.0,1.59385714]
[1756309802558,0.6036461,111980.0,111970.0,1.59385714]
[1756309802741,0.0892872,111980.0,111970.0,1.68315234]
[1756309802944,0.0892872,111980.0,111970.0,1.6632552]
[1756309805052,0.0892872,111980.0,111970.0,1.6642552]
[1756309805646,0.0892872,111980.0,111970.0,2.1786141]
[1756309805948,0.0892872,111980.0,111970.0,2.1796141]
[1756309806449,0.0892872,111980.0,111970.0,1.6652552]
[1756309806953,0.0892872,111980.0,111970.0,1.6642552]
[1756309807151,0.0892872,111980.0,111970.0,1.6652552]
[1756309807848,0.11704769,111990.0,111970.0,2.4286141]
[1756309808154,0.11704769,111990.0,111980.0,0.3608]
[1756309809245,0.11704769,111990.0,111980.0,1.21304]
[1756309809446,0.63140659,111990.0,111980.0,0.3608]
[1756309809651,0.95140659,111990.0,111980.0,0.3608]
[1756309809850,1.20140659,111990.0,111980.0,0.3608]
[1756309810654,1.20140659,111990.0,111970.0,0.3618]
[1756309810655,0.0892872,111980.0,111970.0,0.001]
[1756309810950,0.0893111,111950.0,111940.0,0.56831545]
[1756309811252,0.95367,111950.0,111940.0,0.3608]
[1756309811750,0.60367,111950.0,111940.0,0.3608]
[1756309812259,0.91567,111950.0,111940.0,0.3608]
[1756309812653,0.91667,111950.0,111940.0,0.3608]
[1756309812953,0.60667,111950.0,111940.0,0.3608]
[1756309813148,0.0923111,111950.0,111940.0,0.4501191]
[1756309813959,0.0903111,111950.0,111940.0,0.4501191]
[1756309814157,0.0893111,111950.0,111940.0,0.4501191]
[1756309815054,0.0893111,111950.0,111940.0,1.03687363]
[1756309815263,0.0893111,111950.0,111940.0,1.28687003]
[1756309815460,0.0893111,111950.0,111940.0,0.77251113]
[1756309815662,0.0893111,111950.0,111940.0,1.53643563]
[1756309816257,0.0893111,111950.0,111940.0,1.53743563]
[1756309816656,0.60367,111950.0,111940.0,1.28743563]
[1756309817158,0.60367,111950.0,111940.0,1.28643563]
[1756309817360,0.0893111,111950.0,111940.0,1.28643563]
[1756309818061,0.0893111,111950.0,111940.0,1.37575473]
[1756309819663,0.10766404,111960.0,111950.0,0.0893111]
[1756309819862,0.10766404,111960.0,111950.0,0.4501111]
[1756309821062,0.10766404,111960.0,111950.0,0.3608]
[1756309822259,0.10766404,111960.0,111950.0,0.4501111]
[1756309822465,0.10765724,111960.0,111950.0,0.7001111]
[1756309822663,0.10765724,111960.0,111950.0,0.6108]
[1756309822862,0.96201614,111960.0,111950.0,0.3608]
[1756309823060,0.96201614,111960.0,111950.0,1.2156]
[1756309823363,0.96201614,111960.0,111950.0,1.21592]
[1756309823563,1.21201614,111960.0,111950.0,0.3608]
[1756309824766,1.21201614,111960.0,111950.0,0.3618]
[1756309826459,1.21401614,111960.0,111950.0,0.3608]
[1756309826659,1.21501614,111960.0,111950.0,0.3608]
[1756309828461,0.96501614,111960.0,111950.0,0.4501111]
[1756309828766,0.45065724,111960.0,111950.0,0.4501111]
[1756309829060,0.11065724,111960.0,111950.0,0.4501111]
[1756309829267,0.0923031,111960.0,111950.0,0.7001111]
[1756309829566,0.0903031,111960.0,111950.0,0.7001111]
[1756309829754,0.0893031,111960.0,111950.0,0.7001111]
[1756309829959,0.10708424,111960.0,111950.0,0.7001111]
[1756309830864,0.10708424,111960.0,111950.0,0.7011111]
[1756309831567,0.10708424,111960.0,111950.0,0.7021111]
[1756309832160,0.43708424,111960.0,111950.0,0.6118]
[1756309832364,0.95144314,111960.0,111950.0,0.3628]
[1756309832563,0.43708424,111960.0,111950.0,0.3628]
[1756309832759,0.95144314,111960.0,111950.0,1.21648]
[1756309832959,0.95144314,111960.0,111950.0,0.3618]
[1756309833671,0.95344314,111960.0,111950.0,0.3618]
[1756309833861,0.95344314,111960.0,111950.0,0.3608]
[1756309834063,0.95444314,111960.0,111950.0,0.3608]
[1756309835770,1.20444314,111960.0,111950.0,0.3608]
[1756309835965,0.0893111,111950.0,111940.0,0.43319563]
[1756309836164,0.98367,111950.0,111940.0,0.43319563]
[1756309838174,0.98467,111950.0,111940.0,0.43319563]
[1756309838869,0.98667,111950.0,111940.0,0.43319563]
[1756309841363,0.98667,111950.0,111940.0,0.41944493]
[1756309841566,0.0923111,111950.0,111940.0,0.41944493]
[1756309842065,0.60667,111950.0,111940.0,0.41944493]
[1756309842269,0.92667,111950.0,111940.0,0.41944493]
[1756309842571,0.92567,111950.0,111940.0,0.41944493]
[1756309842876,0.92367,111950.0,111940.0,0.41944493]
[1756309843574,0.92467,111950.0,111940.0,0.41944493]
[1756309844574,0.92667,111950.0,111940.0,0.41944493]
[1756309848077,0.92667,111950.0,111940.0,0.50876403]
[1756309848279,0.0923111,111950.0,111940.0,0.50876403]
[1756309848574,0.0923111,111950.0,111940.0,0.75876403]
[1756309848772,0.0923111,111950.0,111940.0,1.27312293]
[1756309848972,0.0923111,111950.0,111940.0,0.75876403]
[1756309849378,0.0913111,111950.0,111940.0,0.75876403]
[1756309849678,0.0893111,111950.0,111940.0,0.75876403]
[1756309850572,0.0893111,111950.0,111940.0,0.75976403]
[1756309851176,0.60367,111950.0,111940.0,0.42044493]
[1756309851382,0.96367,111950.0,111940.0,1.27296493]
[1756309851679,0.96367,111950.0,111940.0,1.27396493]
[1756309852372,0.96367,111950.0,111940.0,1.27296493]
[1756309852778,0.96367,111950.0,111940.0,1.27196493]
[1756309852974,0.96367,111950.0,111940.0,0.42044493]
[1756309853172,1.21367,111950.0,111940.0,0.42044493]
[1756309853479,0.96367,111950.0,111940.0,0.42044493]
[1756309853777,0.96367,111950.0,111940.0,0.41944493]
[1756309853973,0.96567,111950.0,111940.0,0.41944493]
[1756309854173,1.21567,111950.0,111940.0,0.3608]
[1756309854380,0.0893191,111940.0,111930.0,0.38059877]
[1756309854575,1.0017903,111940.0,111930.0,0.38059877]
[1756309854776,2.1042703,111940.0,111930.0,0.38059877]
[1756309855481,2.1042703,111940.0,111930.0,0.01979877]
[1756309855675,0.0893271,111930.0,111920.0,0.43064306]
[1756309855978,0.953686,111930.0,111920.0,0.3608]
[1756309856185,0.089335,111920.0,111910.0,0.3608]
[1756309856384,0.9336939,111920.0,111910.0,0.3608]
[1756309856586,0.419335,111920.0,111910.0,0.3608]
[1756309856776,0.9336939,111920.0,111910.0,0.3608]
[1756309857173,0.9326939,111920.0,111910.0,0.3608]
[1756309857381,0.9316939,111920.0,111910.0,0.3608]
[1756309857585,0.089343,111910.0,111900.0,1.21332]
[1756309857787,0.9337019,111910.0,111900.0,1.21332]
[1756309858380,0.95746008,111910.0,111900.0,1.21332]
[1756309858579,0.95446008,111910.0,111900.0,1.21332]
[1756309858785,0.95446008,111910.0,111900.0,0.3608]
[1756309859191,0.95446008,111910.0,111900.0,0.3638]
[1756309859192,1.20446008,111910.0,111900.0,0.3638]
[1756309859487,1.20446008,111910.0,111900.0,0.3658]
[1756309860583,0.69010118,111910.0,111900.0,0.3658]
[1756309860783,1.20446008,111910.0,111900.0,0.3658]
[1756309864879,2.05706008,111910.0,111900.0,0.3658]
[1756309867395,0.69010118,111910.0,111900.0,0.3658]
[1756309867592,1.20446008,111910.0,111900.0,0.3658]
[1756309867793,0.44010118,111910.0,111900.0,0.705151]
[1756309868092,0.44010118,111910.0,111900.0,0.6158]
[1756309869392,0.11010118,111910.0,111900.0,0.705151]
[1756309870097,0.11010118,111910.0,111900.0,0.6158]
[1756309871294,0.11010118,111910.0,111900.0,0.705151]
[1756309872597,0.0893391,111920.0,111900.0,1.2195099]
[1756309872892,0.1593391,111920.0,111910.0,1.302783]
[1756309873394,0.18312043,111920.0,111910.0,1.302783]
[1756309873791,0.18312043,111920.0,111910.0,1.21344]
[1756309874097,0.69747933,111920.0,111910.0,0.3608]
[1756309874297,0.99747933,111920.0,111910.0,1.21344]
[1756309874491,0.64747933,111920.0,111910.0,1.21344]
[1756309874891,0.95747933,111920.0,111910.0,1.21344]
[1756309875092,0.95747933,111920.0,111910.0,1.21444]
[1756309875898,0.95747933,111920.0,111910.0,1.21544]
[1756309876099,0.95747933,111920.0,111910.0,0.3628]
[1756309876500,0.13312043,111920.0,111910.0,0.452143]
[1756309876702,0.11312043,111920.0,111910.0,0.3628]
[1756309876904,0.44312043,111920.0,111910.0,0.3628]
[1756309877498,0.95747933,111920.0,111910.0,0.3628]
[1756309878297,0.62747933,111920.0,111910.0,0.3628]
[1756309879104,0.62747933,111920.0,111910.0,0.452143]
[1756309880401,0.11312043,111920.0,111910.0,0.452143]
[1756309881609,0.11312043,111920.0,111910.0,0.3628]
[1756309881803,0.62747933,111920.0,111910.0,0.3628]
[1756309882006,0.98747933,111920.0,111910.0,1.2154]
[1756309883415,0.91226964,111920.0,111910.0,1.2154]
[1756309883708,0.91226964,111920.0,111910.0,1.304743]
[1756309884807,0.11312043,111920.0,111910.0,1.304743]
[1756309885012,0.0893391,111920.0,111910.0,1.99389221]
[1756309885408,0.10771668,111930.0,111920.0,0.089335]
[1756309885712,0.10771668,111930.0,111920.0,0.450135]
[1756309886115,0.54686589,111930.0,111920.0,1.302695]
[1756309886301,0.54686589,111930.0,111920.0,1.21336]
[1756309886502,0.56988943,111930.0,111920.0,1.21336]
[1756309886914,0.90988943,111930.0,111920.0,1.21336]
[1756309888225,0.56988943,111930.0,111920.0,1.302695]
[1756309888415,0.57088943,111930.0,111920.0,0.450135]
[1756309888615,0.57088943,111930.0,111920.0,1.302655]
[1756309889123,0.13174022,111930.0,111920.0,1.302655]